[Event "Late-Titled-Tuesday-Blitz-June-25-2024"]
[Site "Chess.com"]
[Date "2024.06.25"]
[Round "9"]
[White "Meri-Arabidze"]
[Black "Durarbayli"]
[Result "0-1"]
[WhiteElo "2713"]
[BlackElo "2965"]
[TimeControl "180+1"]
[EndTime "15:42:56 PDT"]
[Termination "Durarbayli won on time"]

1. c4 {[%clk 0:03:00.9]} 1... c6 {[%clk 0:03:00]} 2. g3 {[%clk 0:03:00]} 2... d5
{[%clk 0:03:00.9]} 3. Bg2 {[%clk 0:03:00.1]} 3... Nf6 {[%clk 0:03:01.3]} 4. Nf3
{[%clk 0:02:59.7]} 4... dxc4 {[%clk 0:02:57.2]} 5. O-O {[%clk 0:02:59.5]} 5...
Nbd7 {[%clk 0:02:57]} 6. Qc2 {[%clk 0:02:55]} 6... b5 {[%clk 0:02:49.7]} 7. b3
{[%clk 0:02:54.7]} 7... cxb3 {[%clk 0:02:49]} 8. Qxc6 {[%clk 0:02:48.9]} 8...
Rb8 {[%clk 0:02:47.6]} 9. axb3 {[%clk 0:02:47.9]} 9... a6 {[%clk 0:02:43]} 10.
Qc2 {[%clk 0:02:14.2]} 10... Bb7 {[%clk 0:02:42.2]} 11. Nc3 {[%clk 0:02:07]}
11... e6 {[%clk 0:02:40.7]} 12. Bb2 {[%clk 0:01:56.8]} 12... Rc8 {[%clk
0:02:39]} 13. Qb1 {[%clk 0:01:48.4]} 13... Qb6 {[%clk 0:02:37.5]} 14. d4 {[%clk
0:01:41.1]} 14... Bb4 {[%clk 0:02:36]} 15. Rc1 {[%clk 0:01:34.2]} 15... O-O
{[%clk 0:02:36]} 16. Qd3 {[%clk 0:01:10.3]} 16... Rfd8 {[%clk 0:02:35.3]} 17. h3
{[%clk 0:00:57.6]} 17... h6 {[%clk 0:02:34.9]} 18. Qe3 {[%clk 0:00:52.8]} 18...
Rc7 {[%clk 0:02:11.6]} 19. Qf4 {[%clk 0:00:34.1]} 19... Rdc8 {[%clk 0:02:11.1]}
20. Na2 {[%clk 0:00:31.4]} 20... Nd5 {[%clk 0:02:05.5]} 21. Qg4 {[%clk
0:00:22.5]} 21... f5 {[%clk 0:01:52.7]} 22. Qh5 {[%clk 0:00:17.7]} 22... N7f6
{[%clk 0:01:50.1]} 23. Qh4 {[%clk 0:00:16.9]} 23... Be7 {[%clk 0:01:49.9]} 24.
Ne5 {[%clk 0:00:12.6]} 24... Kh7 {[%clk 0:01:44.6]} 25. Rxc7 {[%clk 0:00:11]}
25... Rxc7 {[%clk 0:01:42.6]} 26. Rc1 {[%clk 0:00:11.6]} 26... g5 {[%clk
0:01:36.1]} 27. Bxd5 {[%clk 0:00:02.4]} 27... Bxd5 {[%clk 0:01:32.4]} 28. Rxc7
{[%clk 0:00:01.8]} 28... Qxc7 {[%clk 0:01:33.3]} 0-1

[Event "Late-Titled-Tuesday-Blitz-June-25-2024"]
[Site "Chess.com"]
[Date "2024.06.25"]
[Round "9"]
[White "Bala-Afiada"]
[Black "SocoLoco"]
[Result "0-1"]
[WhiteElo "2069"]
[BlackElo "2171"]
[TimeControl "180+1"]
[EndTime "15:43:09 PDT"]
[Termination "SocoLoco won by checkmate"]

1. d4 {[%clk 0:02:59.6]} 1... d5 {[%clk 0:02:58.9]} 2. c4 {[%clk 0:02:59.2]}
2... Nc6 {[%clk 0:02:58.7]} 3. Nf3 {[%clk 0:02:53.7]} 3... Bg4 {[%clk
0:02:58.2]} 4. e3 {[%clk 0:02:53.1]} 4... e5 {[%clk 0:02:57.9]} 5. dxe5 {[%clk
0:02:50.2]} 5... d4 {[%clk 0:02:57.4]} 6. Be2 {[%clk 0:02:46]} 6... Bb4+ {[%clk
0:02:54.2]} 7. Bd2 {[%clk 0:02:35.1]} 7... dxe3 {[%clk 0:02:53.4]} 8. fxe3
{[%clk 0:02:19]} 8... Nge7 {[%clk 0:02:39.7]} 9. O-O {[%clk 0:02:11.7]} 9... O-O
{[%clk 0:02:39.1]} 10. Bxb4 {[%clk 0:02:08.9]} 10... Nxb4 {[%clk 0:02:40]} 11.
Qb3 {[%clk 0:02:03.2]} 11... a5 {[%clk 0:02:33.1]} 12. a3 {[%clk 0:02:00.1]}
12... Nbc6 {[%clk 0:02:33]} 13. Nc3 {[%clk 0:01:50.9]} 13... Qc8 {[%clk
0:02:29.2]} 14. Nd4 {[%clk 0:01:37.1]} 14... Nxe5 {[%clk 0:02:08.3]} 15. Rad1
{[%clk 0:01:11]} 15... a4 {[%clk 0:01:50.3]} 16. Nxa4 {[%clk 0:00:40.7]} 16...
c5 {[%clk 0:01:49.7]} 17. Bxg4 {[%clk 0:00:34.9]} 17... Nxg4 {[%clk 0:01:44.9]}
18. Nf3 {[%clk 0:00:30.8]} 18... Nf5 {[%clk 0:01:39.7]} 19. Nb6 {[%clk
0:00:28.5]} 19... Qe8 {[%clk 0:01:34.5]} 20. Nxa8 {[%clk 0:00:26.8]} 20... Qxa8
{[%clk 0:01:28.6]} 21. Rfe1 {[%clk 0:00:20.7]} 21... Qb8 {[%clk 0:01:13]} 22.
Qd3 {[%clk 0:00:18.8]} 22... g6 {[%clk 0:01:11.7]} 23. e4 {[%clk 0:00:18.3]}
23... Nd4 {[%clk 0:01:10.8]} 24. Nxd4 {[%clk 0:00:12.4]} 24... Qxh2+ {[%clk
0:01:10.3]} 25. Kf1 {[%clk 0:00:13]} 25... Qh1+ {[%clk 0:01:07.3]} 26. Ke2
{[%clk 0:00:12.8]} 26... Qxg2# {[%clk 0:01:07.9]} 0-1

[Event "Late-Titled-Tuesday-Blitz-June-25-2024"]
[Site "Chess.com"]
[Date "2024.06.25"]
[Round "9"]
[White "lamomiajunior"]
[Black "FairChess_on_YouTube"]
[Result "0-1"]
[WhiteElo "2770"]
[BlackElo "3075"]
[TimeControl "180+1"]
[EndTime "15:43:10 PDT"]
[Termination "FairChess_on_YouTube won by checkmate"]

1. d4 {[%clk 0:03:00.9]} 1... f5 {[%clk 0:02:59.8]} 2. Nc3 {[%clk 0:03:00.6]}
2... Nf6 {[%clk 0:02:59.9]} 3. Bf4 {[%clk 0:03:00.9]} 3... d6 {[%clk 0:02:59.6]}
4. e3 {[%clk 0:03:00.3]} 4... g6 {[%clk 0:02:59.8]} 5. h4 {[%clk 0:03:00.3]}
5... h6 {[%clk 0:02:59.2]} 6. Nf3 {[%clk 0:02:59.2]} 6... Bg7 {[%clk 0:02:58.4]}
7. Bc4 {[%clk 0:02:59.8]} 7... e6 {[%clk 0:02:56.9]} 8. Qe2 {[%clk 0:02:57.3]}
8... Nc6 {[%clk 0:02:56.5]} 9. O-O-O {[%clk 0:02:56]} 9... Qe7 {[%clk
0:02:53.6]} 10. Bb3 {[%clk 0:02:39.8]} 10... Bd7 {[%clk 0:02:47]} 11. e4 {[%clk
0:02:34.8]} 11... fxe4 {[%clk 0:02:36.4]} 12. Nxe4 {[%clk 0:02:35.7]} 12...
O-O-O {[%clk 0:02:31]} 13. Ng3 {[%clk 0:02:19.8]} 13... Nd5 {[%clk 0:02:20.2]}
14. Bd2 {[%clk 0:02:12.8]} 14... Qf7 {[%clk 0:02:19.3]} 15. c3 {[%clk 0:02:06]}
15... Na5 {[%clk 0:02:13]} 16. Bc2 {[%clk 0:02:03]} 16... e5 {[%clk 0:01:54]}
17. dxe5 {[%clk 0:01:58.1]} 17... Nf4 {[%clk 0:01:51.7]} 18. Bxf4 {[%clk
0:01:07]} 18... Qxa2 {[%clk 0:01:51.5]} 19. Rhe1 {[%clk 0:00:29.3]} 19... dxe5
{[%clk 0:01:37.5]} 20. Nxe5 {[%clk 0:00:12.4]} 20... Qa1+ {[%clk 0:01:33.3]} 21.
Bb1 {[%clk 0:00:12.6]} 21... Nb3+ {[%clk 0:01:15.9]} 22. Kc2 {[%clk 0:00:12.5]}
22... Ba4 {[%clk 0:01:16.5]} 23. Qc4 {[%clk 0:00:09.4]} 23... Nd2+ {[%clk
0:01:11.7]} 24. b3 {[%clk 0:00:06.8]} 24... Nxc4 {[%clk 0:01:09.7]} 25. Nxc4
{[%clk 0:00:06.2]} 25... Qxc3# {[%clk 0:01:09.2]} 0-1

[Event "Late-Titled-Tuesday-Blitz-June-25-2024"]
[Site "Chess.com"]
[Date "2024.06.25"]
[Round "9"]
[White "rasmussvane"]
[Black "Mikhail_Golubev"]
[Result "0-1"]
[WhiteElo "2963"]
[BlackElo "2685"]
[TimeControl "180+1"]
[EndTime "15:43:17 PDT"]
[Termination "Mikhail_Golubev won by checkmate"]

1. Nf3 {[%clk 0:02:58.4]} 1... d6 {[%clk 0:02:59.7]} 2. d4 {[%clk 0:02:54.6]}
2... Nf6 {[%clk 0:02:59.6]} 3. g3 {[%clk 0:02:52.1]} 3... g6 {[%clk 0:02:58.7]}
4. Bg2 {[%clk 0:02:52.5]} 4... Bg7 {[%clk 0:02:59.2]} 5. O-O {[%clk 0:02:52.9]}
5... O-O {[%clk 0:02:59.6]} 6. Re1 {[%clk 0:02:53.1]} 6... Nbd7 {[%clk
0:02:54.6]} 7. e4 {[%clk 0:02:51.8]} 7... e5 {[%clk 0:02:54.4]} 8. Nc3 {[%clk
0:02:52.4]} 8... Re8 {[%clk 0:02:53.6]} 9. a4 {[%clk 0:02:52.5]} 9... a5 {[%clk
0:02:53.6]} 10. h3 {[%clk 0:02:52.4]} 10... b6 {[%clk 0:02:47.8]} 11. b3 {[%clk
0:02:51]} 11... exd4 {[%clk 0:02:37.5]} 12. Nxd4 {[%clk 0:02:49.1]} 12... Bb7
{[%clk 0:02:37.7]} 13. Bb2 {[%clk 0:02:46.5]} 13... Nc5 {[%clk 0:02:36.1]} 14.
f3 {[%clk 0:02:39.6]} 14... d5 {[%clk 0:02:27.6]} 15. exd5 {[%clk 0:01:51.2]}
15... Nxd5 {[%clk 0:02:21.8]} 16. Nxd5 {[%clk 0:01:44.1]} 16... Qxd5 {[%clk
0:02:12.9]} 17. Qd2 {[%clk 0:01:15.5]} 17... Ne6 {[%clk 0:01:33.4]} 18. c3
{[%clk 0:00:04.3]} 18... Nxd4 {[%clk 0:01:23.6]} 19. cxd4 {[%clk 0:00:04.4]}
19... Qxb3 {[%clk 0:01:23.6]} 20. Rxe8+ {[%clk 0:00:03.9]} 20... Rxe8 {[%clk
0:01:22.3]} 21. Qc3 {[%clk 0:00:04.3]} 21... Qxc3 {[%clk 0:01:19.4]} 22. Bxc3
{[%clk 0:00:05.2]} 22... Re3 {[%clk 0:01:08.6]} 23. Bd2 {[%clk 0:00:05.4]} 23...
Rd3 {[%clk 0:01:06.5]} 24. Ra2 {[%clk 0:00:05.7]} 24... Bxd4+ {[%clk 0:01:03.9]}
25. Kf1 {[%clk 0:00:06]} 25... Bxf3 {[%clk 0:01:02.6]} 26. Bf4 {[%clk
0:00:06.5]} 26... Rd1# {[%clk 0:01:01.4]} 0-1

[Event "Late-Titled-Tuesday-Blitz-June-25-2024"]
[Site "Chess.com"]
[Date "2024.06.25"]
[Round "9"]
[White "1g60-1"]
[Black "Crazy_girl99"]
[Result "0-1"]
[WhiteElo "2461"]
[BlackElo "2682"]
[TimeControl "180+1"]
[EndTime "15:43:19 PDT"]
[Termination "Crazy_girl99 won by checkmate"]

1. e4 {[%clk 0:03:00.9]} 1... e5 {[%clk 0:02:59.7]} 2. Nf3 {[%clk 0:03:01.3]}
2... Nc6 {[%clk 0:03:00.1]} 3. Bb5 {[%clk 0:03:01.5]} 3... a6 {[%clk 0:03:00.3]}
4. Ba4 {[%clk 0:03:02]} 4... Nf6 {[%clk 0:03:00.7]} 5. d3 {[%clk 0:03:02.5]}
5... b5 {[%clk 0:03:00.6]} 6. Bb3 {[%clk 0:03:03.1]} 6... Bc5 {[%clk 0:03:00.9]}
7. c3 {[%clk 0:03:03.7]} 7... d6 {[%clk 0:03:01.3]} 8. O-O {[%clk 0:03:03.7]}
8... O-O {[%clk 0:03:01.6]} 9. h3 {[%clk 0:03:03.6]} 9... h6 {[%clk 0:03:01.6]}
10. Re1 {[%clk 0:03:04]} 10... Re8 {[%clk 0:03:01.8]} 11. Nbd2 {[%clk
0:03:04.4]} 11... Be6 {[%clk 0:03:01.7]} 12. Nf1 {[%clk 0:03:02.5]} 12... Bxb3
{[%clk 0:02:59.5]} 13. axb3 {[%clk 0:03:00.8]} 13... Bb6 {[%clk 0:02:57.4]} 14.
Ng3 {[%clk 0:02:59.9]} 14... Ne7 {[%clk 0:02:55.7]} 15. d4 {[%clk 0:02:53.1]}
15... Ng6 {[%clk 0:02:55.2]} 16. d5 {[%clk 0:02:45.1]} 16... Qd7 {[%clk
0:02:45.1]} 17. Nf5 {[%clk 0:02:37.3]} 17... Nxe4 {[%clk 0:02:35.5]} 18. Nxh6+
{[%clk 0:02:36]} 18... gxh6 {[%clk 0:02:35.7]} 19. Rxe4 {[%clk 0:02:36.7]} 19...
f5 {[%clk 0:02:36]} 20. Re1 {[%clk 0:02:27.1]} 20... f4 {[%clk 0:02:34.8]} 21.
Qd3 {[%clk 0:02:17.6]} 21... Qf7 {[%clk 0:02:32]} 22. Bd2 {[%clk 0:02:02.2]}
22... Ne7 {[%clk 0:02:29.9]} 23. c4 {[%clk 0:02:00.3]} 23... Qf5 {[%clk
0:02:24]} 24. Qc3 {[%clk 0:01:49.3]} 24... Ng6 {[%clk 0:02:10.4]} 25. cxb5
{[%clk 0:01:21.2]} 25... axb5 {[%clk 0:02:06.5]} 26. Qc6 {[%clk 0:01:18.6]}
26... Rab8 {[%clk 0:01:58.9]} 27. Nh2 {[%clk 0:01:08.1]} 27... h5 {[%clk
0:01:51.9]} 28. Nf3 {[%clk 0:01:06.6]} 28... e4 {[%clk 0:01:50.2]} 29. Bc3
{[%clk 0:01:01.8]} 29... b4 {[%clk 0:01:23.4]} 30. Nd4 {[%clk 0:00:42.6]} 30...
Qg5 {[%clk 0:01:21.4]} 31. Ne6 {[%clk 0:00:35]} 31... Rxe6 {[%clk 0:01:17]} 32.
dxe6 {[%clk 0:00:35.3]} 32... f3 {[%clk 0:01:17.5]} 33. g4 {[%clk 0:00:29.9]}
33... hxg4 {[%clk 0:01:07.8]} 34. h4 {[%clk 0:00:19]} 34... Qxh4 {[%clk
0:01:07.2]} 35. Qxe4 {[%clk 0:00:17.6]} 35... Qxf2+ {[%clk 0:01:05.7]} 36. Kh1
{[%clk 0:00:17.6]} 36... Qg2# {[%clk 0:01:06.4]} 0-1

[Event "Late-Titled-Tuesday-Blitz-June-25-2024"]
[Site "Chess.com"]
[Date "2024.06.25"]
[Round "9"]
[White "TokChess"]
[Black "Puzzlebot_1294"]
[Result "1-0"]
[WhiteElo "2542"]
[BlackElo "2634"]
[TimeControl "180+1"]
[EndTime "15:43:21 PDT"]
[Termination "TokChess won on time"]

1. d4 {[%clk 0:03:00.9]} 1... Nf6 {[%clk 0:02:59.2]} 2. Nf3 {[%clk 0:02:57.4]}
2... e6 {[%clk 0:02:50.8]} 3. c3 {[%clk 0:02:55.6]} 3... b6 {[%clk 0:02:45.1]}
4. g3 {[%clk 0:02:52.9]} 4... Bb7 {[%clk 0:02:44.9]} 5. Bg2 {[%clk 0:02:53.8]}
5... Be7 {[%clk 0:02:44.7]} 6. O-O {[%clk 0:02:53.8]} 6... O-O {[%clk 0:02:45]}
7. a4 {[%clk 0:02:53.7]} 7... c5 {[%clk 0:02:44.8]} 8. a5 {[%clk 0:02:47.5]}
8... Qc7 {[%clk 0:02:40.3]} 9. Bf4 {[%clk 0:02:44.5]} 9... d6 {[%clk 0:02:35.9]}
10. Na3 {[%clk 0:02:43.3]} 10... Nd5 {[%clk 0:02:30.7]} 11. Bg5 {[%clk
0:02:19.3]} 11... h6 {[%clk 0:02:09.5]} 12. Bxe7 {[%clk 0:02:08.6]} 12... Nxe7
{[%clk 0:02:10.4]} 13. dxc5 {[%clk 0:01:58.8]} 13... dxc5 {[%clk 0:02:04.7]} 14.
Nb5 {[%clk 0:01:57.9]} 14... Qd8 {[%clk 0:01:08]} 15. Qxd8 {[%clk 0:01:56.4]}
15... Rxd8 {[%clk 0:01:06.6]} 16. Nc7 {[%clk 0:01:57.3]} 16... Nd7 {[%clk
0:00:52]} 17. Nxa8 {[%clk 0:01:55.4]} 17... Bxa8 {[%clk 0:00:48]} 18. axb6
{[%clk 0:01:56.3]} 18... axb6 {[%clk 0:00:47]} 19. Rfd1 {[%clk 0:01:55.8]} 19...
Bd5 {[%clk 0:00:30.5]} 20. c4 {[%clk 0:01:51.8]} 20... Bxc4 {[%clk 0:00:25.8]}
21. Ne5 {[%clk 0:01:50.9]} 21... Bd5 {[%clk 0:00:25.8]} 22. Nxd7 {[%clk
0:01:41.6]} 22... Rxd7 {[%clk 0:00:25]} 23. e4 {[%clk 0:01:42.3]} 23... f5
{[%clk 0:00:20.1]} 24. exd5 {[%clk 0:01:41.2]} 24... exd5 {[%clk 0:00:21]} 25.
Ra6 {[%clk 0:01:32.2]} 25... Rd6 {[%clk 0:00:20.2]} 26. Ra7 {[%clk 0:01:32.2]}
26... Kf8 {[%clk 0:00:14.8]} 27. Re1 {[%clk 0:01:28.8]} 27... Nc6 {[%clk
0:00:14.6]} 28. Rc7 {[%clk 0:01:27.5]} 28... Nb4 {[%clk 0:00:03.1]} 29. Ree7
{[%clk 0:01:18.3]} 29... d4 {[%clk 0:00:03.2]} 30. Rf7+ {[%clk 0:01:18.3]} 30...
Ke8 {[%clk 0:00:01.8]} 31. Rxg7 {[%clk 0:01:19.2]} 1-0

[Event "Late-Titled-Tuesday-Blitz-June-25-2024"]
[Site "Chess.com"]
[Date "2024.06.25"]
[Round "9"]
[White "Veleamater"]
[Black "harshu27"]
[Result "1-0"]
[WhiteElo "2408"]
[BlackElo "2502"]
[TimeControl "180+1"]
[EndTime "15:43:21 PDT"]
[Termination "Veleamater won on time"]

1. g3 {[%clk 0:03:00.9]} 1... e5 {[%clk 0:02:59]} 2. Bg2 {[%clk 0:03:00.5]} 2...
d5 {[%clk 0:02:58.8]} 3. d3 {[%clk 0:03:00.7]} 3... Nf6 {[%clk 0:02:58.5]} 4.
Nf3 {[%clk 0:03:00.9]} 4... Nbd7 {[%clk 0:02:57.7]} 5. O-O {[%clk 0:03:01.2]}
5... Bd6 {[%clk 0:02:57.6]} 6. h3 {[%clk 0:03:01.3]} 6... O-O {[%clk 0:02:57.2]}
7. Nc3 {[%clk 0:03:01.6]} 7... c6 {[%clk 0:02:57.4]} 8. e4 {[%clk 0:03:01.5]}
8... dxe4 {[%clk 0:02:53.8]} 9. dxe4 {[%clk 0:03:01.1]} 9... Qe7 {[%clk
0:02:52.1]} 10. Nh4 {[%clk 0:03:00.5]} 10... Nb6 {[%clk 0:02:47.1]} 11. Nf5
{[%clk 0:02:56.2]} 11... Bxf5 {[%clk 0:02:46.6]} 12. exf5 {[%clk 0:02:57.1]}
12... Rad8 {[%clk 0:02:46.7]} 13. g4 {[%clk 0:02:56.2]} 13... Nfd5 {[%clk
0:02:44.2]} 14. Ne4 {[%clk 0:02:53.3]} 14... Nf4 {[%clk 0:02:39]} 15. Qf3 {[%clk
0:02:49.6]} 15... Nxg2 {[%clk 0:02:36.4]} 16. Kxg2 {[%clk 0:02:48.3]} 16... f6
{[%clk 0:02:32.1]} 17. b3 {[%clk 0:02:46.9]} 17... Bc5 {[%clk 0:02:30.7]} 18. c4
{[%clk 0:02:43.5]} 18... Bd4 {[%clk 0:02:29.1]} 19. Rb1 {[%clk 0:02:41.3]} 19...
a5 {[%clk 0:02:26.5]} 20. h4 {[%clk 0:02:39]} 20... Nd7 {[%clk 0:02:23.5]} 21.
Kh3 {[%clk 0:02:37.4]} 21... Nc5 {[%clk 0:02:21.7]} 22. Ba3 {[%clk 0:02:28.3]}
22... b5 {[%clk 0:02:05.6]} 23. Bxc5 {[%clk 0:02:19.3]} 23... Bxc5 {[%clk
0:02:03.8]} 24. Rbc1 {[%clk 0:02:18.4]} 24... b4 {[%clk 0:01:59.4]} 25. Rcd1
{[%clk 0:02:11.3]} 25... Rd4 {[%clk 0:01:58.8]} 26. Rxd4 {[%clk 0:02:09.7]}
26... Bxd4 {[%clk 0:01:57.4]} 27. Rg1 {[%clk 0:02:08.6]} 27... g6 {[%clk
0:01:10]} 28. g5 {[%clk 0:01:58.9]} 28... fxg5 {[%clk 0:01:09.7]} 29. Rxg5
{[%clk 0:01:56.9]} 29... Qd7 {[%clk 0:00:32.2]} 30. Kg2 {[%clk 0:01:53.2]} 30...
Kh8 {[%clk 0:00:13.7]} 31. f6 {[%clk 0:01:50.1]} 31... Qe6 {[%clk 0:00:12.7]}
32. h5 {[%clk 0:01:48.5]} 32... gxh5 {[%clk 0:00:07.6]} 33. Qxh5 {[%clk
0:01:44.9]} 33... Qf7 {[%clk 0:00:02]} 34. Qh6 {[%clk 0:01:27.2]} 1-0

[Event "Late-Titled-Tuesday-Blitz-June-25-2024"]
[Site "Chess.com"]
[Date "2024.06.25"]
[Round "9"]
[White "chessdoll90"]
[Black "schondeln"]
[Result "1-0"]
[WhiteElo "2494"]
[BlackElo "2378"]
[TimeControl "180+1"]
[EndTime "15:43:21 PDT"]
[Termination "chessdoll90 won by checkmate"]

1. c4 {[%clk 0:03:00.9]} 1... c6 {[%clk 0:02:59.4]} 2. g3 {[%clk 0:02:52.9]}
2... d5 {[%clk 0:02:59.1]} 3. Bg2 {[%clk 0:02:51.9]} 3... Nf6 {[%clk 0:02:59.2]}
4. cxd5 {[%clk 0:02:51.2]} 4... cxd5 {[%clk 0:02:58.9]} 5. Nf3 {[%clk
0:02:52.1]} 5... Nc6 {[%clk 0:02:58.6]} 6. d4 {[%clk 0:02:52.1]} 6... Bf5 {[%clk
0:02:52.6]} 7. O-O {[%clk 0:02:51.6]} 7... e6 {[%clk 0:02:53]} 8. a3 {[%clk
0:02:47.7]} 8... Bd6 {[%clk 0:02:52.3]} 9. b4 {[%clk 0:02:47.6]} 9... O-O {[%clk
0:02:51.1]} 10. Bb2 {[%clk 0:02:47.4]} 10... h6 {[%clk 0:02:32.5]} 11. Nc3
{[%clk 0:02:41.3]} 11... Qe7 {[%clk 0:02:25.7]} 12. Nh4 {[%clk 0:02:38.8]} 12...
Bh7 {[%clk 0:02:24.6]} 13. f4 {[%clk 0:02:38.5]} 13... a5 {[%clk 0:02:17.6]} 14.
b5 {[%clk 0:02:37.3]} 14... Nxd4 {[%clk 0:02:16.6]} 15. Nxd5 {[%clk 0:02:26.1]}
15... Nxe2+ {[%clk 0:02:10.4]} 16. Qxe2 {[%clk 0:02:23.8]} 16... exd5 {[%clk
0:02:10.7]} 17. Qxe7 {[%clk 0:02:11.8]} 17... Bxe7 {[%clk 0:02:11.6]} 18. Rad1
{[%clk 0:02:11.4]} 18... Rad8 {[%clk 0:01:50.5]} 19. f5 {[%clk 0:01:54.8]} 19...
Ne4 {[%clk 0:01:45.8]} 20. Rf3 {[%clk 0:01:12.3]} 20... Bc5+ {[%clk 0:01:40.6]}
21. Kf1 {[%clk 0:01:10.4]} 21... Rfe8 {[%clk 0:01:32.6]} 22. Bd4 {[%clk
0:01:07.9]} 22... b6 {[%clk 0:01:07.3]} 23. Rfd3 {[%clk 0:01:04.2]} 23... Bxd4
{[%clk 0:01:01.3]} 24. Rxd4 {[%clk 0:01:05.1]} 24... Nc3 {[%clk 0:01:01.4]} 25.
R1d3 {[%clk 0:01:02.6]} 25... Nxb5 {[%clk 0:01:01.2]} 26. Rxd5 {[%clk
0:01:00.5]} 26... Rxd5 {[%clk 0:00:58.4]} 27. Bxd5 {[%clk 0:01:00.9]} 27... Nc7
{[%clk 0:00:50.1]} 28. Bc6 {[%clk 0:00:56.4]} 28... Rb8 {[%clk 0:00:43.4]} 29.
Rd7 {[%clk 0:00:55.3]} 29... Ne8 {[%clk 0:00:43.5]} 30. Bd5 {[%clk 0:00:52.7]}
30... Nf6 {[%clk 0:00:34.9]} 31. Bxf7+ {[%clk 0:00:52.7]} 31... Kf8 {[%clk
0:00:30.5]} 32. Ra7 {[%clk 0:00:52.6]} 32... Bg8 {[%clk 0:00:25]} 33. Ng6#
{[%clk 0:00:51.6]} 1-0

[Event "Late-Titled-Tuesday-Blitz-June-25-2024"]
[Site "Chess.com"]
[Date "2024.06.25"]
[Round "9"]
[White "tolimachess"]
[Black "shirovin"]
[Result "0-1"]
[WhiteElo "2258"]
[BlackElo "2101"]
[TimeControl "180+1"]
[EndTime "15:43:30 PDT"]
[Termination "shirovin won by checkmate"]

1. d4 {[%clk 0:03:00.9]} 1... f5 {[%clk 0:02:59]} 2. g4 {[%clk 0:02:58.4]} 2...
d5 {[%clk 0:02:56.1]} 3. Nc3 {[%clk 0:02:53.4]} 3... Nf6 {[%clk 0:02:50.8]} 4.
g5 {[%clk 0:02:51.2]} 4... Ne4 {[%clk 0:02:50.5]} 5. Nxe4 {[%clk 0:02:46.9]}
5... fxe4 {[%clk 0:02:50]} 6. Bf4 {[%clk 0:02:44.7]} 6... e6 {[%clk 0:02:47.4]}
7. e3 {[%clk 0:02:44]} 7... Be7 {[%clk 0:02:46.8]} 8. h4 {[%clk 0:02:43.5]} 8...
O-O {[%clk 0:02:45.8]} 9. Bh3 {[%clk 0:02:42.2]} 9... c5 {[%clk 0:02:38.6]} 10.
c3 {[%clk 0:02:41.9]} 10... Nc6 {[%clk 0:02:37.1]} 11. Ne2 {[%clk 0:02:40.6]}
11... cxd4 {[%clk 0:02:10.7]} 12. exd4 {[%clk 0:02:39.9]} 12... Bd7 {[%clk
0:02:00.4]} 13. Qd2 {[%clk 0:02:35.5]} 13... a5 {[%clk 0:01:58.4]} 14. h5 {[%clk
0:02:26.3]} 14... g6 {[%clk 0:01:42.7]} 15. hxg6 {[%clk 0:02:22.3]} 15... hxg6
{[%clk 0:01:42.6]} 16. Bg4 {[%clk 0:02:21.8]} 16... e5 {[%clk 0:01:34.1]} 17.
Bxd7 {[%clk 0:02:21.3]} 17... exf4 {[%clk 0:01:29.6]} 18. Be6+ {[%clk
0:02:20.6]} 18... Kg7 {[%clk 0:01:29]} 19. c4 {[%clk 0:01:51.9]} 19... Bxg5
{[%clk 0:01:21.1]} 20. Qc3 {[%clk 0:01:38.6]} 20... Ne7 {[%clk 0:01:03.6]} 21.
Qh3 {[%clk 0:01:35]} 21... Rh8 {[%clk 0:00:58.6]} 22. Qxh8+ {[%clk 0:01:33.4]}
22... Qxh8 {[%clk 0:00:57.5]} 23. Rxh8 {[%clk 0:01:33.9]} 23... Rxh8 {[%clk
0:00:56.1]} 24. Kf1 {[%clk 0:01:19.5]} 24... Rh1+ {[%clk 0:00:51.4]} 25. Ng1
{[%clk 0:01:18.6]} 25... f3 {[%clk 0:00:36.5]} 26. Bxd5 {[%clk 0:01:01.4]} 26...
Nxd5 {[%clk 0:00:30.9]} 27. cxd5 {[%clk 0:01:02.3]} 27... e3 {[%clk 0:00:30.9]}
28. fxe3 {[%clk 0:00:59.5]} 28... Bxe3 {[%clk 0:00:29.6]} 29. d6 {[%clk
0:00:50.3]} 29... Rxg1# {[%clk 0:00:20.5]} 0-1